bitfinex-derivatives/quotes_BTCF0:USTF0_20240824
["timestamp","ask_amount","ask_price","bid_price","bid_amount"]
[1724542033128,0.078168,63936.0,63935.0,0.078169]
[1724542033429,0.538968,63936.0,63935.0,0.078169]
[1724542033732,0.61695468,63936.0,63935.0,0.078169]
[1724542033932,0.66649468,63936.0,63935.0,0.078169]
[1724542034329,0.66849468,63936.0,63935.0,0.100169]
[1724542037428,0.590508,63936.0,63935.0,0.100169]
[1724542038432,0.590508,63936.0,63935.0,0.022]
[1724542038832,0.66849468,63936.0,63935.0,0.022]
[1724542039734,0.078174,63931.0,63930.0,0.01078316]
[1724542039940,0.078174,63931.0,63928.0,0.04682559]
[1724542040134,0.04677795,63929.0,63928.0,0.04682559]
[1724542040339,0.1,63930.0,63928.0,0.12501458]
[1724542040833,4e-05,63929.0,63928.0,0.12501458]
[1724542041440,0.04680898,63929.0,63928.0,0.12501458]
[1724542041733,0.04680898,63929.0,63928.0,0.13301458]
[1724542041939,4e-05,63929.0,63928.0,0.086178]
[1724542042740,4e-05,63929.0,63928.0,0.078178]
[1724542042938,0.00104,63929.0,63928.0,0.086178]
[1724542043635,0.00204,63929.0,63928.0,0.086178]
[1724542046528,0.080216,63929.0,63928.0,0.008]
[1724542046733,0.441016,63929.0,63928.0,0.008]
[1724542046930,0.46636103,63929.0,63928.0,0.008]
[1724542047429,0.55984419,63929.0,63928.0,0.008]
[1724542047838,0.078178,63928.0,63927.0,0.00023445]
[1724542048026,0.10352303,63928.0,63927.0,0.00023445]
[1724542048340,0.20352303,63928.0,63927.0,0.00023445]
[1724542048530,0.178218,63928.0,63927.0,0.00023445]
[1724542048734,0.25610231,63928.0,63927.0,0.00023445]
[1724542049134,0.179218,63928.0,63927.0,0.00023445]
[1724542049336,0.25709897,63928.0,63927.0,0.00023445]
[1724542051343,0.180218,63928.0,63927.0,0.00023445]
[1724542053238,0.541018,63928.0,63927.0,0.00023445]
[1724542054440,0.180218,63928.0,63927.0,0.00023445]
[1724542054641,0.541018,63928.0,63927.0,0.00023445]
[1724542054831,0.180218,63928.0,63927.0,0.00023445]
[1724542055033,0.541018,63928.0,63927.0,0.00023445]
[1724542056542,0.180218,63928.0,63927.0,0.00023445]
[1724542056843,0.541018,63928.0,63927.0,0.00023445]
[1724542058633,0.441018,63928.0,63927.0,0.07841345]
[1724542058837,0.42510829,63928.0,63927.0,0.07841345]
[1724542060439,0.36284,63928.0,63927.0,0.07841345]
[1724542060639,0.42513835,63928.0,63927.0,0.07841345]
[1724542060839,0.36284,63928.0,63927.0,0.07841345]
[1724542062049,0.36284,63928.0,63927.0,0.08925952]
[1724542062445,4.12284,63928.0,63927.0,0.08925952]
[1724542063042,4.1695842,63928.0,63927.0,0.08925952]
[1724542066055,4.12284,63928.0,63927.0,0.08925952]
[1724542066652,3.76204,63928.0,63927.0,0.08925952]
[1724542068451,3.76204,63928.0,63927.0,0.1360961]
[1724542069148,3.8087842,63928.0,63927.0,0.08925952]
[1724542071757,3.76204,63928.0,63927.0,0.08925952]
[1724542072660,3.76204,63928.0,63927.0,0.13609153]
[1724542072864,3.76204,63928.0,63927.0,0.08925952]
[1724542083463,3.76204,63928.0,63927.0,0.15169364]
[1724542084354,3.76204,63928.0,63927.0,0.08925952]
[1724542085558,2.89020133,63928.0,63927.0,1.47569752]
[1724542085757,1.91837229,63928.0,63927.0,1.86811903]
[1724542085961,1.83321559,63928.0,63927.0,1.75179846]
[1724542086263,1.83321559,63928.0,63927.0,1.96282442]
[1724542086766,1.83321559,63928.0,63927.0,1.56282442]
[1724542086959,1.83321559,63928.0,63927.0,1.92362442]
[1724542087159,1.83321559,63928.0,63927.0,1.82906688]
[1724542087463,1.83321559,63928.0,63927.0,1.37372099]
[1724542088263,1.83321559,63928.0,63927.0,1.25636099]
[1724542088569,1.83321559,63928.0,63927.0,1.14563957]
[1724542091464,1.87998419,63928.0,63927.0,1.14563957]
[1724542092167,1.87998419,63928.0,63927.0,0.78483957]
[1724542092355,1.83321559,63928.0,63927.0,0.78483957]
[1724542093863,1.83321559,63928.0,63927.0,0.68483957]
[1724542095061,1.83321559,63928.0,63927.0,0.74732537]
[1724542095267,1.83321559,63928.0,63927.0,0.38652537]
[1724542095466,1.83321559,63928.0,63927.0,0.32403957]
[1724542096467,1.83321559,63928.0,63927.0,0.08925952]
[1724542098172,1.83321559,63928.0,63927.0,0.15174854]
[1724542098568,1.83321559,63928.0,63927.0,0.08925952]
[1724542101369,1.93321559,63928.0,63927.0,0.08925952]
[1724542101562,1.93321559,63928.0,63927.0,0.15175331]
[1724542109470,1.99551394,63928.0,63927.0,0.08925952]
[1724542111274,1.93321559,63928.0,63927.0,0.1361286]
[1724542111475,1.9955795,63928.0,63927.0,0.1361286]
[1724542111667,1.93321559,63928.0,63927.0,0.1361286]
[1724542111863,1.99557827,63928.0,63927.0,0.1361286]
[1724542114170,1.89557827,63928.0,63927.0,0.1361286]
[1724542114377,1.89557827,63928.0,63927.0,0.08925952]
[1724542114976,1.83321559,63928.0,63927.0,0.08925952]
[1724542115871,1.83321559,63928.0,63927.0,0.13612189]
[1724542116473,1.89557827,63928.0,63927.0,0.08925952]
[1724542117579,1.83321559,63928.0,63927.0,0.08925952]
[1724542117778,1.89562845,63928.0,63927.0,0.08925952]
[1724542118585,1.83321559,63928.0,63927.0,0.15175331]
[1724542126492,1.83321559,63928.0,63927.0,0.08925952]
[1724542140098,1.83321559,63928.0,63927.0,0.18925952]
[1724542140489,1.83321559,63928.0,63927.0,1.49751852]
[1724542140691,1.74736659,63928.0,63927.0,1.8455282]
[1724542141090,1.74736659,63928.0,63927.0,1.96239974]
[1724542141297,1.74736659,63928.0,63927.0,1.96117973]
[1724542141798,1.58024159,63928.0,63927.0,1.84434094]
[1724542142298,1.58024159,63928.0,63927.0,1.93803893]
[1724542143200,1.58024159,63928.0,63927.0,1.84434094]
[1724542143592,1.58024159,63928.0,63927.0,1.93803893]
[1724542143991,1.39728399,63928.0,63927.0,1.96073262]
[1724542144193,1.31360799,63928.0,63927.0,1.96073262]
[1724542144500,1.21092972,63928.0,63927.0,1.96073262]
[1724542144901,1.21092972,63928.0,63927.0,1.95992286]
[1724542145102,1.05841729,63928.0,63927.0,1.95992286]
[1724542145402,0.92859531,63928.0,63927.0,1.95992286]
[1724542147006,0.92859531,63928.0,63927.0,2.32072286]
[1724542147404,0.92859531,63928.0,63927.0,2.24254386]
[1724542147893,0.92859531,63928.0,63927.0,2.32072286]
[1724542148408,0.92859531,63928.0,63927.0,2.20448566]
[1724542148608,0.92859531,63928.0,63927.0,2.20304515]
[1724542148903,0.92859531,63928.0,63927.0,1.48144515]
[1724542149205,0.92859531,63928.0,63927.0,2.20304515]
[1724542149601,0.92859531,63928.0,63927.0,1.48144515]
[1724542149799,0.90701946,63928.0,63927.0,2.20304515]
[1724542149997,0.87307046,63928.0,63927.0,2.20304515]
[1724542150207,0.87307046,63928.0,63927.0,2.41375839]
[1724542150508,0.58013847,63928.0,63927.0,2.41375839]
[1724542150709,0.00023445,63940.0,63939.0,0.078164]
[1724542150895,0.00023445,63940.0,63939.0,0.96210244]
[1724542151097,0.00023445,63940.0,63939.0,0.899764]
[1724542151498,0.00023445,63940.0,63939.0,1.13351273]
[1724542151704,0.00023445,63940.0,63939.0,2.00275273]
[1724542153314,0.00023445,63940.0,63939.0,2.06504711]
[1724542153804,0.00123445,63940.0,63939.0,2.06504711]
[1724542154012,0.00223445,63940.0,63939.0,2.06504711]
[1724542154607,0.00223445,63940.0,63939.0,1.34344711]
[1724542154906,0.00223445,63940.0,63939.0,2.00275273]
[1724542155109,0.00223445,63940.0,63939.0,2.01351425]
[1724542161110,0.00223445,63940.0,63939.0,1.61351425]
[1724542164306,0.00223445,63940.0,63939.0,1.14431425]
[1724542165611,0.00223445,63940.0,63939.0,0.78351425]
[1724542168223,0.00223445,63940.0,63939.0,0.42271425]
[1724542168421,0.00223445,63940.0,63939.0,0.78351425]
[1724542168624,0.00223445,63940.0,63939.0,0.42271425]
[1724542168821,0.00223445,63940.0,63939.0,0.78351425]
[1724542169419,0.00223445,63940.0,63939.0,0.50063731]
[1724542169621,0.00223445,63940.0,63939.0,0.86143731]
[1724542170325,0.00223445,63940.0,63939.0,0.96948271]
[1724542171024,0.00223445,63940.0,63939.0,0.89155965]
[1724542174921,0.00223445,63940.0,63939.0,0.89182669]
[1724542175722,0.00223445,63940.0,63939.0,0.53102669]
[1724542175924,0.00223445,63940.0,63939.0,0.89182669]
[1724542176528,0.00223445,63940.0,63939.0,0.53102669]
[1724542176726,0.00223445,63940.0,63939.0,0.89182669]
[1724542177632,0.00223445,63940.0,63939.0,0.89186799]
[1724542178333,0.00223445,63940.0,63939.0,0.98537566]
[1724542179433,0.00223445,63940.0,63939.0,0.9856135]
[1724542179634,0.00223445,63940.0,63939.0,0.98561509]
[1724542180228,0.00223445,63940.0,63939.0,0.89186799]
[1724542180431,0.00223445,63940.0,63939.0,0.53106799]
[1724542180633,0.00223445,63940.0,63939.0,0.89186799]
[1724542183225,0.00223445,63940.0,63939.0,1.00801163]
[1724542183424,0.00223445,63940.0,63939.0,0.98564104]
[1724542184737,0.00223445,63940.0,63939.0,1.34644104]
[1724542185435,0.00223445,63940.0,63939.0,1.36978799]
[1724542187329,0.00223445,63940.0,63939.0,1.37171156]
[1724542187831,0.00223445,63940.0,63939.0,0.79379156]
[1724542188030,0.00223445,63940.0,63939.0,0.81562756]
[1724542188228,0.00223445,63940.0,63939.0,0.93274756]
[1724542192045,0.00223445,63940.0,63939.0,0.93337077]
[1724542194134,0.00223445,63940.0,63939.0,0.57257077]
[1724542194644,0.00223445,63940.0,63939.0,0.47257077]
[1724542194833,0.00223445,63940.0,63939.0,0.24455025]
[1724542195039,0.06467396,63940.0,63939.0,0.30705298]
[1724542195243,0.00223445,63940.0,63939.0,0.24455025]
[1724542196339,0.08039745,63940.0,63939.0,0.01080152]
[1724542196939,0.08039745,63940.0,63939.0,0.05765524]
[1724542196940,0.14283696,63940.0,63939.0,0.05765524]
[1724542197735,0.14283696,63940.0,63939.0,0.01080152]
[1724542199134,0.50363696,63940.0,63939.0,0.01080152]
[1724542199544,0.44119745,63940.0,63939.0,0.01080152]
[1724542199749,0.50363696,63940.0,63939.0,0.01080152]
[1724542200443,0.14283696,63940.0,63939.0,0.01080152]
[1724542200642,0.50363696,63940.0,63939.0,0.01080152]
[1724542201441,0.078169,63935.0,63934.0,0.04685372]
[1724542201647,0.07817,63934.0,63933.0,0.04685372]
[1724542201849,0.32173579,63934.0,63932.0,0.04685372]
[1724542202448,0.27497,63934.0,63932.0,0.04685372]
[1724542202647,0.27497,63934.0,63929.0,0.15160266]
[1724542202648,4e-05,63933.0,63931.0,0.04685372]
[1724542203140,4e-05,63933.0,63932.0,0.04685372]
[1724542203341,4e-05,63933.0,63931.0,0.04685372]
[1724542203744,4e-05,63933.0,63931.0,0.28152276]
[1724542204142,4e-05,63932.0,63931.0,0.28152276]
[1724542205336,4e-05,63932.0,63931.0,0.23466904]
[1724542205850,0.00104,63932.0,63931.0,0.23466904]
[1724542206643,0.00204,63932.0,63931.0,0.23466904]
[1724542209054,0.00204,63932.0,63929.0,0.01092393]
[1724542209256,0.1,63930.0,63928.0,0.04685372]
[1724542209654,0.1,63930.0,63928.0,0.12503072]
[1724542210159,4e-05,63929.0,63928.0,0.12503072]
[1724542211047,4e-05,63929.0,63928.0,0.13556185]
[1724542211848,4e-05,63929.0,63928.0,0.18870813]
[1724542212452,0.00104,63929.0,63928.0,0.18870813]
[1724542213257,0.00204,63929.0,63928.0,0.18870813]
[1724542218866,0.00204,63929.0,63928.0,0.25111623]
[1724542219055,0.00204,63929.0,63928.0,0.18870813]
[1724542224250,0.00204,63929.0,63928.0,0.38030143]
[1724542224752,0.00204,63929.0,63928.0,0.38030885]
[1724542225251,0.00204,63929.0,63928.0,0.30218498]
[1724542225759,0.00204,63929.0,63928.0,0.38031034]
[1724542226158,0.00204,63929.0,63928.0,0.30218498]
[1724542227762,0.04880579,63929.0,63928.0,0.30218498]
[1724542228861,0.00204,63929.0,63928.0,1.00606907]
[1724542229054,0.002,63929.0,63928.0,1.6026438]
[1724542229569,0.002,63929.0,63928.0,1.7003772]
[1724542229868,0.002,63929.0,63928.0,1.80970124]
[1724542230057,0.002,63929.0,63928.0,1.7003772]
[1724542230453,0.002,63929.0,63928.0,1.6026438]
[1724542231254,0.002,63929.0,63928.0,1.70037746]
[1724542231462,0.002,63929.0,63928.0,1.6026438]
[1724542233372,0.002,63929.0,63928.0,2.3242438]
[1724542234168,0.00023445,63940.0,63938.0,0.078165]
[1724542234367,0.00023445,63940.0,63939.0,0.5232325]
[1724542235063,0.00023445,63940.0,63939.0,0.5232725]
[1724542235261,0.00123445,63940.0,63939.0,0.5232725]
[1724542235463,0.00123445,63940.0,63939.0,0.6014365]
[1724542235771,0.00223445,63940.0,63939.0,0.6014365]
[1724542236767,0.00123445,63940.0,63939.0,0.6014365]
[1724542237061,0.00223445,63940.0,63939.0,0.6014365]
[1724542238470,0.00223445,63940.0,63939.0,0.178204]
[1724542238678,0.00223445,63940.0,63939.0,0.539004]
[1724542238973,0.00223445,63940.0,63939.0,0.178204]
[1724542239462,0.00223445,63940.0,63939.0,0.54964088]
[1724542239971,0.00223445,63940.0,63939.0,0.18884088]
[1724542240569,0.00223445,63940.0,63939.0,0.54964088]
[1724542240963,0.10223445,63940.0,63939.0,0.4182823]
[1724542241168,0.10223445,63940.0,63939.0,0.37147688]
[1724542241369,0.10223445,63940.0,63939.0,0.4182823]
[1724542242074,0.10223445,63940.0,63939.0,0.37147688]
[1724542242075,0.18039745,63940.0,63939.0,0.37147688]
[1724542242666,0.18039745,63940.0,63939.0,0.01067688]
[1724542246269,0.18039745,63940.0,63939.0,0.0574823]
[1724542249480,0.24275183,63940.0,63939.0,0.0574823]
[1724542250880,0.24275183,63940.0,63939.0,0.01067688]
[1724542250881,0.18039745,63940.0,63939.0,0.01067688]
[1724542253571,0.24275183,63940.0,63939.0,0.01067688]
[1724542255278,0.24275183,63940.0,63939.0,0.0574823]
[1724542256984,0.18039745,63940.0,63939.0,0.01067688]
[1724542257676,0.61907842,63940.0,63939.0,4e-05]
[1724542258468,0.61920507,63940.0,63939.0,4e-05]
[1724542259077,0.078166,63937.0,63936.0,0.04680542]
[1724542259277,0.1,63937.0,63934.0,0.04680542]
[1724542259479,0.1,63935.0,63934.0,0.04680542]
[1724542259875,0.1493,63935.0,63934.0,0.04680542]
[1724542260074,0.14934,63935.0,63934.0,0.04680542]
[1724542260474,0.04934,63935.0,63933.0,0.438971]
[1724542260672,0.14934,63935.0,63933.0,0.5014035]
[1724542260975,0.227509,63935.0,63933.0,0.438971]
[1724542261175,4e-05,63934.0,63933.0,0.5014035]
[1724542261575,0.04683944,63934.0,63933.0,0.5014035]
[1724542262291,0.04783944,63934.0,63933.0,0.5014035]
[1724542262683,0.04883944,63934.0,63933.0,0.5014035]
[1724542266682,0.00204,63934.0,63933.0,0.5014035]
[1724542267482,0.00204,63934.0,63933.0,0.078171]
[1724542277788,0.06443906,63934.0,63933.0,0.14067606]
[1724542278792,0.00204,63934.0,63933.0,0.078171]
[1724542280297,0.10204,63934.0,63933.0,0.078171]
[1724542280481,0.10204,63934.0,63932.0,0.37141816]
[1724542281395,4e-05,63933.0,63932.0,0.37141816]
[1724542282892,0.06243906,63933.0,63932.0,0.37141816]
[1724542283190,0.06343906,63933.0,63932.0,0.37141816]
[1724542283893,0.06443906,63933.0,63932.0,0.44959016]
[1724542284397,0.00204,63933.0,63932.0,0.44959016]
[1724542285096,0.00204,63933.0,63932.0,0.08879016]
[1724542298801,0.080211,63933.0,63932.0,0.08879016]
[1724542300107,0.080211,63933.0,63932.0,0.15131472]
[1724542300303,0.080211,63933.0,63932.0,0.15131187]
[1724542300507,0.080211,63933.0,63932.0,0.08879016]
[1724542301997,0.00204,63933.0,63932.0,0.08879016]
[1724542302205,0.00204,63933.0,63932.0,0.52763955]
[1724542302407,0.00204,63933.0,63932.0,0.54959016]
[1724542302613,0.00204,63933.0,63932.0,0.74048581]
[1724542303109,0.00204,63933.0,63932.0,0.66220366]
[1724542303303,0.00204,63933.0,63932.0,0.74103839]
[1724542303505,0.04893304,63933.0,63932.0,0.66284736]
[1724542304809,0.00204,63933.0,63932.0,0.66284736]
[1724542305809,0.00204,63933.0,63932.0,1.62574663]
[1724542306505,0.00204,63933.0,63932.0,1.76566442]
[1724542309710,0.00204,63933.0,63932.0,1.36566442]
[1724542311907,0.00204,63933.0,63932.0,1.09852369]
[1724542312104,0.00204,63933.0,63932.0,1.82012369]
[1724542313113,0.00204,63933.0,63932.0,1.72646442]
[1724542313506,0.00204,63933.0,63932.0,1.82012369]
[1724542313706,0.00204,63933.0,63932.0,1.72646442]
[1724542316502,0.00204,63933.0,63932.0,1.25722442]
[1724542317318,0.00204,63933.0,63932.0,1.25660406]
[1724542319714,0.00204,63933.0,63932.0,0.53500406]
[1724542319914,0.00204,63933.0,63932.0,1.25660406]
[1724542321019,0.00204,63933.0,63932.0,1.25662425]
[1724542321020,0.002,63933.0,63932.0,1.25662425]
[1724542321413,0.002,63933.0,63932.0,2.12586425]
[1724542322215,0.002,63933.0,63932.0,2.20403625]
[1724542322414,0.00023445,63940.0,63939.0,0.078164]
[1724542322612,0.00023445,63940.0,63939.0,0.438964]
[1724542322815,0.00023445,63940.0,63939.0,0.78925374]
[1724542323215,0.00023445,63940.0,63939.0,1.25849374]
[1724542323424,0.00023445,63940.0,63939.0,1.33647481]
[1724542323627,0.00223445,63940.0,63939.0,1.02453027]
[1724542323819,0.00223445,63940.0,63939.0,0.91247481]
[1724542324017,0.00223445,63940.0,63939.0,1.02457979]
[1724542325118,0.00223445,63940.0,63939.0,0.94659872]
[1724542325917,0.00223445,63940.0,63939.0,0.95733384]
[1724542326519,0.00223445,63940.0,63939.0,1.31813384]
[1724542326824,0.00223445,63940.0,63939.0,1.36733384]
[1724542327019,0.00223445,63940.0,63939.0,1.36679803]
[1724542329932,0.00223445,63940.0,63939.0,1.36670292]
[1724542331126,0.00223445,63940.0,63939.0,1.46036219]
[1724542331741,0.00223445,63940.0,63939.0,0.64510292]
[1724542331936,0.00223445,63940.0,63939.0,1.36670292]
[1724542332336,0.00223445,63940.0,63939.0,1.46036219]
[1724542332540,0.00223445,63940.0,63939.0,0.73876219]
[1724542332741,0.00223445,63940.0,63939.0,0.73880171]
[1724542332937,0.00223445,63940.0,63939.0,1.46040171]
[1724542333245,0.00223445,63940.0,63939.0,1.56040171]
[1724542333445,0.00223445,63940.0,63939.0,1.51120171]
[1724542334744,0.00223445,63940.0,63939.0,1.51116003]
[1724542335944,0.00223445,63940.0,63939.0,0.78956003]
[1724542336139,0.00223445,63940.0,63939.0,1.51116003]
[1724542336847,0.00223445,63940.0,63939.0,1.41750076]
[1724542338434,0.00223445,63940.0,63939.0,1.51116003]
[1724542339137,0.00223445,63940.0,63939.0,0.78956003]
[1724542339335,0.00223445,63940.0,63939.0,1.51116003]
[1724542339937,0.00223445,63940.0,63939.0,0.69590076]
[1724542340232,0.00223445,63940.0,63939.0,1.41750076]
[1724542341240,0.00223445,63940.0,63939.0,1.51116003]
[1724542341846,0.00223445,63940.0,63939.0,0.78956003]
[1724542342046,0.00223445,63940.0,63939.0,1.51116003]
[1724542342238,0.00223445,63940.0,63939.0,0.78956003]
[1724542342439,0.00223445,63940.0,63939.0,1.51116003]
[1724542342643,0.00223445,63940.0,63939.0,0.78956003]
[1724542342943,0.00223445,63940.0,63939.0,1.41750076]
[1724542344837,0.00223445,63940.0,63939.0,1.36585552]
[1724542345041,0.00223445,63940.0,63939.0,1.46585552]
[1724542345244,0.00223445,63940.0,63939.0,1.37222076]
[1724542345446,0.00223445,63940.0,63939.0,1.46585644]
[1724542347050,0.00223445,63940.0,63939.0,0.74425644]
[1724542347255,0.00223445,63940.0,63939.0,1.46585644]
[1724542348144,0.00223445,63940.0,63939.0,1.37222076]
[1724542349548,0.00223445,63940.0,63939.0,0.65062076]
[1724542349752,0.00223445,63940.0,63939.0,1.37222076]
[1724542352455,0.00223445,63940.0,63939.0,1.48977425]
[1724542354347,0.00223445,63940.0,63939.0,1.48978759]
[1724542357347,0.00223445,63940.0,63939.0,0.76818759]
[1724542357662,0.00223445,63940.0,63939.0,1.48978759]
[1724542359657,0.00223445,63940.0,63939.0,0.76818759]
[1724542360164,0.00223445,63940.0,63939.0,1.48978759]
[1724542360465,0.00223445,63940.0,63939.0,1.58750741]
[1724542361256,0.00223445,63940.0,63939.0,1.63390741]
[1724542363056,0.00223445,63940.0,63939.0,1.71207141]
[1724542363265,0.00223445,63940.0,63939.0,1.61435159]
[1724542363763,0.04689304,63949.0,63948.0,0.078153]
[1724542363963,0.04689304,63951.0,63950.0,0.07815]
[1724542364165,0.04689304,63952.0,63951.0,0.078149]
[1724542364460,0.04689304,63952.0,63951.0,0.28928215]
[1724542364662,0.04689304,63953.0,63952.0,0.078148]
[1724542364868,0.10942825,63956.0,63952.0,0.21113315]
[1724542365066,0.10942825,63956.0,63948.0,0.4631419]
[1724542365067,0.10942825,63956.0,63955.0,0.1]
[1724542365261,0.10942825,63956.0,63955.0,0.4608]
[1724542365460,0.0469,63956.0,63955.0,0.4608]
[1724542365669,0.0469,63956.0,63955.0,0.46084]
[1724542366357,0.09374718,63956.0,63955.0,0.46084]
[1724542366558,0.10674718,63956.0,63955.0,0.46084]
[1724542367267,0.0599,63956.0,63955.0,0.46084]
[1724542367467,0.0729,63956.0,63955.0,0.46084]
[1724542369267,0.0729,63956.0,63955.0,0.47134437]
[1724542369661,0.0729,63956.0,63955.0,0.54948837]
[1724542370963,0.0729,63956.0,63955.0,0.78544647]
[1724542371657,0.0729,63956.0,63955.0,0.9729965]
[1724542371864,0.026,63956.0,63955.0,0.9729965]
[1724542372065,0.026,63956.0,63955.0,0.89495547]
[1724542372372,0.026,63956.0,63955.0,0.97284971]
[1724542372962,0.026,63956.0,63955.0,0.89495547]
[1724542374181,0.026,63956.0,63955.0,0.8943447]
[1724542375372,0.00023464,63958.0,63957.0,0.078142]
[1724542375563,0.00023464,63958.0,63957.0,0.30360023]
[1724542375763,0.00023464,63958.0,63957.0,0.53830856]
[1724542375976,0.00023464,63958.0,63957.0,0.6317288]
[1724542376171,0.00023464,63958.0,63957.0,0.6316824]
[1724542376676,0.09204718,63975.0,63958.0,0.46904]
[1724542376864,0.0954,63974.0,63972.0,0.3608]
[1724542378676,0.0954,63974.0,63973.0,0.1]
[1724542379873,0.0954,63974.0,63973.0,0.101]
[1724542379874,0.0994,63974.0,63973.0,0.101]
[1724542380770,0.0994,63974.0,63973.0,0.18992929]
[1724542382568,0.1094,63974.0,63973.0,0.19092929]
[1724542384573,0.1094,63974.0,63973.0,0.19096929]
[1724542386167,0.1094,63974.0,63973.0,0.55176929]
[1724542387077,0.1094,63974.0,63973.0,0.56832929]
[1724542387268,0.1094,63974.0,63973.0,0.66832929]
[1724542392180,0.1094,63974.0,63973.0,0.55176929]
[1724542395577,0.1094,63974.0,63973.0,0.45176929]
[1724542395777,0.1094,63974.0,63973.0,0.59843583]
[1724542397283,0.1094,63974.0,63973.0,0.55176929]
[1724542398880,0.1094,63974.0,63973.0,0.45176929]
[1724542398881,0.15624718,63974.0,63973.0,0.45176929]
[1724542399085,1.07836,63974.0,63971.0,0.04668813]
[1724542399279,0.4608,63972.0,63963.0,0.04669821]
[1724542399586,0.1,63965.0,63962.0,0.078135]
[1724542399794,0.04679028,63963.0,63962.0,0.078135]
[1724542399974,0.52454252,63965.0,63960.0,0.01087343]
[1724542400277,0.52454252,63965.0,63959.0,0.26325821]
[1724542400278,0.1,63962.0,63959.0,0.04669821]
[1724542400478,0.1,63962.0,63956.0,0.04693285]
[1724542400479,0.56734,63961.0,63956.0,0.04693285]
[1724542400682,0.04679394,63960.0,63957.0,0.04669821]
[1724542400883,0.04679394,63958.0,63957.0,0.23424644]
[1724542401090,0.46904,63959.0,63957.0,0.23424644]
[1724542401279,0.51583394,63959.0,63957.0,0.23424644]
[1724542401479,0.46904,63958.0,63957.0,0.23424644]
[1724542401675,0.04679394,63959.0,63957.0,0.23424644]
[1724542401881,0.04679394,63959.0,63958.0,0.1]
[1724542402093,0.0983,63961.0,63958.0,0.1]
[1724542402094,0.04679394,63960.0,63958.0,0.1]
[1724542402281,0.51583394,63960.0,63958.0,0.1]
[1724542402586,0.46904,63959.0,63958.0,0.1]
[1724542402790,0.51583394,63960.0,63958.0,0.1]
[1724542402987,0.51983394,63960.0,63958.0,0.1]
[1724542403288,0.005,63959.0,63958.0,0.1]
[1724542403786,0.00136,63960.0,63958.0,0.1]
[1724542403981,0.01,63960.0,63958.0,0.101]
[1724542404585,0.005,63960.0,63959.0,4e-05]
[1724542405385,0.0983,63961.0,63959.0,4e-05]
[1724542406384,0.0983,63961.0,63960.0,4e-05]
[1724542407090,0.1043,63961.0,63960.0,4e-05]
[1724542407480,0.1033,63961.0,63960.0,4e-05]
[1724542407684,0.1113,63961.0,63960.0,0.00104]
[1724542409992,0.1123,63961.0,63960.0,0.00204]
[1724542415503,0.0624,63961.0,63960.0,0.00204]
[1724542415808,0.0624,63961.0,63960.0,0.080178]
[1724542420721,0.10919394,63961.0,63960.0,0.080178]
[1724542421422,0.0624,63961.0,63960.0,0.080178]
[1724542425127,0.0624,63961.0,63960.0,0.12687621]
[1724542425627,0.0624,63961.0,63960.0,0.22687621]
[1724542426822,0.014,63961.0,63960.0,0.22687621]
[1724542427224,0.014,63961.0,63960.0,0.24240006]
[1724542429534,0.014,63961.0,63960.0,0.14240006]
[1724542429732,0.014,63961.0,63960.0,0.24240006]
[1724542430229,0.014,63961.0,63960.0,0.180178]
[1724542432232,0.07650407,63961.0,63960.0,0.180178]
[1724542433230,0.014,63961.0,63960.0,0.180178]
[1724542436438,0.014,63961.0,63960.0,0.28690522]
[1724542438733,0.014,63961.0,63960.0,0.18690522]
[1724542438933,0.014,63961.0,63960.0,0.28690522]
[1724542439336,0.014,63961.0,63960.0,0.64770522]
[1724542440036,0.014,63961.0,63960.0,0.540978]
[1724542440238,0.014,63961.0,63960.0,0.7255557]
[1724542440431,0.014,63961.0,63960.0,0.64753518]
[1724542441729,0.014,63961.0,63960.0,0.88208178]
[1724542441931,0.04709593,63965.0,63964.0,0.078133]
[1724542442132,0.00023464,63965.0,63964.0,0.178133]
[1724542442335,0.00023464,63965.0,63964.0,0.41315371]
[1724542442838,0.00023464,63965.0,63964.0,0.41319371]
[1724542443139,0.00623464,63965.0,63964.0,0.41419371]
[1724542443333,0.01823464,63965.0,63964.0,0.41519371]
[1724542445333,0.01823464,63965.0,63964.0,0.31519371]
[1724542445635,0.01823464,63965.0,63964.0,0.41519371]
[1724542447143,0.01823464,63965.0,63964.0,0.54211418]
[1724542449035,0.01823464,63965.0,63964.0,0.90291418]
[1724542452041,0.01823464,63965.0,63964.0,0.54211418]
[1724542452244,0.01823464,63965.0,63964.0,0.90291418]
[1724542457240,0.04686129,63968.0,63964.0,0.82478118]
[1724542457438,0.04686129,63968.0,63967.0,0.1]
[1724542457638,4e-05,63974.0,63967.0,0.1]
[1724542457639,0.04686129,63969.0,63968.0,0.078128]
[1724542457835,0.04686129,63970.0,63969.0,0.078127]
[1724542458043,0.04686129,63971.0,63970.0,0.078126]
[1724542458241,4e-05,63974.0,63972.0,0.078122]
[1724542458439,4e-05,63974.0,63973.0,0.16237596]
[1724542459047,4e-05,63974.0,63973.0,0.16241596]
[1724542459641,4e-05,63974.0,63973.0,0.24053796]
[1724542460347,4e-05,63974.0,63973.0,0.24153796]
[1724542460745,4e-05,63974.0,63973.0,0.24253796]
[1724542461753,4e-05,63974.0,63973.0,0.180162]
[1724542462439,4e-05,63974.0,63973.0,0.18891535]
[1724542465148,4e-05,63974.0,63973.0,0.54971535]
[1724542467541,4e-05,63974.0,63973.0,0.78270208]
[1724542467747,4e-05,63974.0,63973.0,0.86070883]
[1724542467941,4e-05,63974.0,63973.0,0.78270208]
[1724542468153,4e-05,63974.0,63973.0,0.86070883]
[1724542468548,4e-05,63974.0,63973.0,0.96521573]
[1724542468756,4e-05,63974.0,63973.0,0.88727694]
[1724542471851,4e-05,63974.0,63973.0,0.96518997]
[1724542472148,4e-05,63974.0,63973.0,0.9645206]
[1724542472459,4e-05,63974.0,63973.0,0.96451441]
[1724542473553,4e-05,63974.0,63973.0,0.88660757]
[1724542473960,4e-05,63974.0,63973.0,0.96450965]
[1724542474158,4e-05,63974.0,63973.0,0.8645133]
[1724542474354,4e-05,63974.0,63973.0,0.86060781]
[1724542474556,4e-05,63974.0,63973.0,0.97696781]
[1724542475157,0.00023425,63977.0,63976.0,0.078118]
[1724542475356,0.00023425,63977.0,63976.0,0.178118]
[1724542475557,0.00023425,63977.0,63976.0,0.41304502]
[1724542476460,0.00023425,63977.0,63976.0,0.41404502]
[1724542476763,0.00023425,63977.0,63976.0,0.41504502]
[1724542478560,0.0468117,63984.0,63976.0,0.42284483]
[1724542478757,0.0468117,63986.0,63984.0,0.078109]
[1724542478956,0.0468117,63986.0,63985.0,0.1]